Cogmind - Beta 13 @@@ ROGUE MODE // 2024.05.04 @ 21:22:30 Player: Compound1080 Result: Self-destructed Performance ------------- Evolutions (2) 1000 Regions Visited (4) 800 Robots Destroyed (13) 65 Value Destroyed (439) 439 Prototype IDs (3) 60 Alien Tech Used (0) 0 Bonus (0) 0 TOTAL SCORE: 2364 Bonus ------- None Cogmind --------- Core Integrity 242/550 Matter 300/300 Energy 265/265 System Corruption 0% Temperature Cool (0) Movement Flying (180) Ox2 Location -8/Materials Parts ------- > --- POWER (1) -------- Improved Ion Engine > --- PROPULSION (4) --- Improved Flight Unit > --- UTILITY (4) ------ Small Storage Unit Signal Interpreter Targeting Computer > --- WEAPON (2) ------- (None) > --- INVENTORY (8) ---- Light Ion Engine Carbon-fiber Leg Wheel Flight Unit Improved Sensor Array Insulated Plating Beam Rifle Pulse Rifle Peak State ------------ > --- POWER ------------ Light Ion Engine > --- PROPULSION ------- Aluminum Leg Aluminum Leg Compact Wheel Compact Wheel > --- UTILITY ---------- Small Storage Unit Signal Interpreter Targeting Computer Hardened Light Armor Plating > --- WEAPON ----------- Beam Rifle Beam Rifle > --- INVENTORY -------- Light Ion Engine Improved Ion Engine Wheel Flight Unit Improved Sensor Array [Rating: 14] Favorites ----------- Power Light Ion Engine Engine Light Ion Engine Propulsion Compact Wheel Leg Aluminum Leg Wheel Compact Wheel Flight Unit Improved Flight Unit Utility Small Storage Unit Device Improved Sensor Array Storage Small Storage Unit Processor Signal Interpreter Protection Hardened Light Armor Plating Weapon Beam Rifle Energy Gun Beam Rifle Ballistic Gun Light Assault Rifle Build | -11 -10 -10 -9 -8 ------- Run | Yrd Mat Min Mat Mat Slots Evolved 4 | . . . 2 2 Power . | . . . . . Propulsion 2 | . . . . 2 Utility 2 | . . . 2 . Weapon . | . . . . . Parts Attached 24 | 4 4 . 8 8 Power 3 | 1 . . 1 1 Engine 3 | 1 . . 1 1 Core . | . . . . . Reactor . | . . . . . Propulsion 10 | 2 2 . 2 4 Treads . | . . . . . Leg 5 | 2 . . 2 1 Wheel 4 | . 2 . . 2 Hover . | . . . . . Flight 1 | . . . . 1 Utility 6 | 1 1 . 2 2 Device 1 | . . . . 1 Storage 1 | 1 . . . . Processor 2 | . 1 . 1 . Hackware . | . . . . . Protection 2 | . . . 1 1 Artifact . | . . . . . Weapon 5 | . 1 . 3 1 Energy Gun 2 | . . . 1 1 Energy Cannon . | . . . . . Ballistic Gun 3 | . 1 . 2 . Ballistic Cannon . | . . . . . Launcher . | . . . . . Special Weapon . | . . . . . Impact Weapon . | . . . . . Slashing Weapon . | . . . . . Piercing Weapon . | . . . . . Special Melee Weapon . | . . . . . Unidentified Prototypes 1 | . . . . 1 Parts Lost 10 | . . 1 1 8 Power 2 | . . . 1 1 Propulsion 4 | . . . . 4 Utility 1 | . . . . 1 Weapon 3 | . . 1 . 2 Highest Loss Streak 5 | . . 1 1 5 To Critical Strikes 1 | . . . . 1 Average Slot Usage (%) 77 | . 64 85 88 68 Engine 11 | . 14 14 11 8 Leg 8 | . 6 . 8 12 Wheel 12 | . 21 28 13 1 Storage 11 | . 14 14 11 9 Processor 16 | . 5 14 20 18 Protection 4 | . . . 9 2 Energy Gun 4 | . . . 4 7 Ballistic Gun 6 | . 1 14 9 3 Naked Turns . | . . . . . Heaviest Build 19 | 8 10 10 17 19 Greatest Support 32 | 20 32 32 32 25 Greatest Overweight (x) 2 | 2 . . . 2 Average Overweight (x) . | . . . . . Largest Inventory Capacity 8 | 8 8 8 8 8 Average Capacity 7 | 7 8 8 8 8 Most Carried 8 | 4 6 4 8 8 Average Carried 5 | 2 4 4 4 7 Final Capacity 8 | 8 8 8 8 8 Final Carried 8 | 4 4 4 8 8 Class Distribution -------------------- 100% | Mutant Dominant Class ---------------- Mutant | -10/Materials Mutant | -10/Mines Mutant | -9/Materials Mutant | -8/Materials Resources | -11 -10 -10 -9 -8 ----------- Run | Yrd Mat Min Mat Mat Matter Collected 538 | 184 . . 297 57 Remotely . | . . . . . Salvage Created 479 | . . 17 329 133 Parts 29 | . . 3 23 3 Haulers Intercepted . | . . . . . Recyclers Shooed 2 | . 1 . . 1 Parts Field Recycled . | . . . . . Retrieved Matter . | . . . . . Parts Self-Destructed . | . . . . . Prevented . | . . . . . Kills | -11 -10 -10 -9 -8 ------- Run | Yrd Mat Min Mat Mat Combat Hostiles Destroyed 13 | . . 1 9 3 Guns 12 | . . 1 9 2 Classes Destroyed 4 | . . 1 2 1 Swarmer 4 | . . 1 3 . Grunt 5 | . . . 3 2 Sentry 3 | . . . 3 . Hunter 1 | . . . . 1 Best Kill Streak 3 | . . 1 3 2 Combat Bots Only 3 | . . 1 3 2 Max Kills in Single Turn 1 | . . 1 1 1 Gunslinging . | . . . . . Exploded . | . . . . . Melee . | . . . . . Uniques/NPCs Destroyed . | . . . . . Combat | -11 -10 -10 -9 -8 -------- Run | Yrd Mat Min Mat Mat Hostile Shots Fired 163 | . 15 19 66 63 Missed 37 | . 2 6 13 16 Damage Taken 1611 | . 145 105 617 744 Core 467 | . 34 20 105 308 Absorbed by Shields . | . . . . . Core Remaining (%) 83 | 100 . 78 73 . Volleys Fired 80 | . 1 4 45 30 Largest 2 | . 1 1 2 2 Hottest 112 | . 20 20 76 112 Shots Fired 104 | . 1 4 65 34 Gun 104 | . 1 4 65 34 Cannon . | . . . . . Launcher . | . . . . . Special . | . . . . . Kinetic 52 | . 1 4 45 2 Thermal 52 | . . . 20 32 Explosive . | . . . . . Electromagnetic . | . . . . . Robot Hit Streak 10 | . 1 2 9 10 Robot Miss Streak 4 | . . 2 1 4 Penetration Max . | . . . . . Secondary Targets 1 | . . . 1 . Max Gunslinging Chain 1 | . . . 1 . Shots Hit Robots 77 | . 1 2 49 25 Core Hits 25 | . 1 1 16 7 Critical Kills . | . . . . . Critical Parts Destroyed . | . . . . . Critical Strikes 1 | . . . . 1 Burn 1 | . . . . 1 Melee Attacks . | . . . . . Impact . | . . . . . Slashing . | . . . . . Piercing . | . . . . . Sneak Attacks . | . . . . . Combat Hostiles . | . . . . . Follow-up Attacks . | . . . . . Damage Inflicted 1047 | . 18 30 640 359 Guns 1043 | . 14 30 640 359 Cannons . | . . . . . Explosions . | . . . . . Melee . | . . . . . Ramming 4 | . 4 . . . Kinetic 483 | . 14 30 439 . Thermal 560 | . . . 201 359 Explosive . | . . . . . Electromagnetic . | . . . . . Impact . | . . . . . Slashing . | . . . . . Piercing . | . . . . . Highest Corruption . | . . . . . Average Corruption . | . . . . . Corruption Purged . | . . . . . Corruption Blocked . | . . . . . Overload Shots . | . . . . . Overflow Damage . | . . . . . Projectiles . | . . . . . Explosions . | . . . . . Melee . | . . . . . Knockbacks . | . . . . . Impact . | . . . . . Kinetic . | . . . . . Secondary . | . . . . . Self-Inflicted Damage . | . . . . . Shots . | . . . . . Rammed . | . . . . . Targets Rammed 2 | . 2 . . . Kicked 2 | . 2 . . . Crushed . | . . . . . Highest Temperature 391 | . . . 391 221 Average Temperature 121 | . . . 131 107 Received Heat Transfer 597 | . 78 15 207 297 Effects 1 | . . . 1 . Shutdowns 1 | . . . 1 . Siege Activations . | . . . . . Robots Corrupted . | . . . . . Combat Hostiles . | . . . . . Parts Fried . | . . . . . Impact Corruptions . | . . . . . Robots Melted 1 | . . . . 1 Combat Hostiles 1 | . . . . 1 Parts Melted 2 | . . . . 2 Heat Transferred 1517 | . . . 518 999 Parts Sabotaged . | . . . . . Parts Stolen . | . . . . . Parts Stripped . | . . . . . Power Chain Reactions . | . . . . . Alert | -11 -10 -10 -9 -8 ------- Run | Yrd Mat Min Mat Mat Peak Influence 325 | . 65 75 325 67 Initial 52 | . . 25 25 52 Average 76 | . 18 34 156 41 Maximum Alert Level 1 | . . . 1 . Low Security (%) 89 | 100 100 100 71 100 Level 1 10 | . . . 28 . Level 2 . | . . . . . Level 3 . | . . . . . Level 4 . | . . . . . Level 5 . | . . . . . High Security . | . . . . . Max Security . | . . . . . Squads Dispatched 3 | . 1 . . 2 Investigation 2 | . 1 . . 1 Extermination . | . . . . . Reinforcement 1 | . . . . 1 Assault . | . . . . . Garrison . | . . . . . Intercept . | . . . . . Searches Triggered . | . . . . . Construction Impeded . | . . . . . Haulers Reinforced . | . . . . . Active Scanning Responses . | . . . . . Cargo Convoy Interrupts . | . . . . . Stealth | -11 -10 -10 -9 -8 --------- Run | Yrd Mat Min Mat Mat Distress Signals . | . . . . . Communications Jammed . | . . . . . Distress Signals . | . . . . . Times Spotted 37 | . 8 5 13 11 Peak Tracking Total 8 | . 5 3 6 8 Tactical Retreats 2 | . 1 1 . . Traps | -11 -10 -10 -9 -8 ------- Run | Yrd Mat Min Mat Mat Traps Triggered 2 | . 1 . . 1 Indirectly . | . . . . . Trap Hack Attempts . | . . . . . Triggered . | . . . . . Disarmed 4 | . . . 4 . Reprogrammed . | . . . . . Reused . | . . . . . Traps Extracted . | . . . . . Installed . | . . . . . Triggered . | . . . . . Machines | -11 -10 -10 -9 -8 ---------- Run | Yrd Mat Min Mat Mat Machines Disabled . | . . . . . Max in Single Turn . | . . . . . Machines Repaired . | . . . . . Machines Dismantled . | . . . . . Machines Sabotaged . | . . . . . Overloaded Fab Kills . | . . . . . Hacking | -11 -10 -10 -9 -8 --------- Run | Yrd Mat Min Mat Mat Machines Accessed 6 | . 2 . 3 1 Terminals 6 | . 2 . 3 1 Fabricators . | . . . . . Repair Stations . | . . . . . Recycling Units . | . . . . . Scanalyzers . | . . . . . Garrison Access . | . . . . . Total Hacks 17 | . 4 . 10 3 Successful 12 | . 2 . 8 2 Failed 5 | . 2 . 2 1 Catastrophic . | . . . . . Database Lockouts . | . . . . . Manual 1 | . . . 1 . Terminals 17 | . 4 . 10 3 Fabricators . | . . . . . Repair Stations . | . . . . . Recycling Units . | . . . . . Scanalyzers . | . . . . . Garrison Access . | . . . . . Terminal Hacks 12 | . 2 . 8 2 Record 2 | . . . 1 1 Prototype ID Bank 1 | . 1 . . . Emergency Access Points 2 | . . . 2 . Unreport Threat 1 | . . . . 1 Locate Traps 2 | . . . 2 . Disarm Traps 1 | . . . 1 . Investigation Status 1 | . 1 . . . Zone Layout 2 | . . . 2 . Fabricator Hacks . | . . . . . Repair Station Hacks . | . . . . . Recycling Unit Hacks . | . . . . . Scanalyzer . | . . . . . Garrison Access Hacks . | . . . . . Unauthorized Hacks . | . . . . . Terminals . | . . . . . Fabricators . | . . . . . Repair Stations . | . . . . . Recycling Units . | . . . . . Scanalyzers . | . . . . . Garrison Access . | . . . . . Data Cores Recovered . | . . . . . Used . | . . . . . Hacking Detections 5 | . 2 . 2 1 Full Trace Events 1 | . . . . 1 Feedback Events . | . . . . . Feedback Blocked . | . . . . . Robot Schematics Acquired . | . . . . . Robots Built . | . . . . . Authchips . | . . . . . Time . | . . . . . Total Robot Build Rating . | . . . . . Part Schematics Acquired . | . . . . . Parts Built . | . . . . . Authchips . | . . . . . Time . | . . . . . Total Part Build Rating . | . . . . . Parts Repaired . | . . . . . Time . | . . . . . Parts Recycled . | . . . . . Recycled Matter . | . . . . . Retrieved Matter . | . . . . . Retrieved Components . | . . . . . Parts Scanalyzed . | . . . . . Part Schematics Acquired . | . . . . . Parts Damaged . | . . . . . Bothacking | -11 -10 -10 -9 -8 ------------ Run | Yrd Mat Min Mat Mat Used RIF Installer . | . . . . . Robots Hacked . | . . . . . Non-combat . | . . . . . Combat . | . . . . . Robot Hacks Applied . | . . . . . Relay Couplers Released . | . . . . . Fabnet Peak Effective % . | . . . . . Robots Rewired . | . . . . . Allies Hacked . | . . . . . Hacks Repelled . | . . . . . Allies | -11 -10 -10 -9 -8 -------- Run | Yrd Mat Min Mat Mat Total Allies . | . . . . . Largest Group . | . . . . . Highest-Rated Group . | . . . . . Highest-Rated Ally . | . . . . . Total Orders . | . . . . . Ally Attacks . | . . . . . Total Damage . | . . . . . Kills . | . . . . . Allies Corrupted . | . . . . . Allies Melted . | . . . . . Intel | -11 -10 -10 -9 -8 ------- Run | Yrd Mat Min Mat Mat Robot Analysis Total . | . . . . . Derelict Logs Recovered . | . . . . . Drone Launches . | . . . . . Drone Recoveries . | . . . . . Exploration | -11 -10 -10 -9 -8 ------------- Run | Yrd Mat Min Mat Mat Turns Passed 1101 | 67 212 83 410 329 Spaces Moved 728 | 47 195 76 235 175 Core 17 | 17 . . . . Treads . | . . . . . Legs 251 | 30 33 . 52 136 Wheels 421 | . 162 76 183 . Hover . | . . . . . Flight 39 | . . . . 39 Fastest Speed 50 | 50 100 100 100 120 Average Speed 112 | 119 103 100 104 135 Slowest Speed 190 | 150 120 100 120 190 Overloaded Moves . | . . . . . Propulsion Burnouts . | . . . . . Robots Hopped . | . . . . . Cave-ins Triggered . | . . . . . Exploration Rate (%) 20 | 4 32 23 26 18 Regions Visited 4 Branch Regions 1 Pre-discovered Areas . | . . . . . Known Exits Taken 3 | . 1 1 1 . Unknown Exits Taken 1 | 1 . . . . Scrap Searched . | . . . . . Spaces Dug . | . . . . . Terrain Destroyed . | . . . . . Melee . | . . . . . Projectile . | . . . . . AOE . | . . . . . Terrain Rammed . | . . . . . Walls Destroyed . | . . . . . Machines Disabled . | . . . . . Actions | -11 -10 -10 -9 -8 --------- Run | Yrd Mat Min Mat Mat Total 918 | 58 203 79 342 236 Wait 58 | . . . 46 12 Move 724 | 46 194 75 234 175 Hop . | . . . . . Pick Up 25 | 8 2 . 9 6 Fast Attach . | . . . . . Attach 19 | 4 2 . 5 8 Detach 3 | . . . . 3 Swap 5 | . 2 . 3 . Drop 2 | . . . . 2 Fire 80 | . 1 4 45 30 Melee . | . . . . . Ram . | . . . . . Kick 2 | . 2 . . . Crush . | . . . . . Escape Stasis . | . . . . . Rewire . | . . . . . Trap . | . . . . . Miscellaneous . | . . . . . Route ------- -11/Scrapyard -10/Materials (discovered 2 exits: *Mat / *Min) -10/Mines -9/Materials -8/Materials History --------- Turn | Location | Event 6 | -11/Scrapyard | Discovered new exit (range 15) 68 | -11/Scrapyard | Entered Materials 80 | -10/Materials | Discovered new exit (range 16) 114 | -10/Materials | Discovered new exit (range 15) 279 | -10/Materials | Identified exit to Mines 280 | -10/Materials | Entered Mines 313 | -10/Mines | Build established: Mutant 353 | -10/Mines | Discovered new exit (range 3) 362 | -10/Mines | Identified exit to Materials 363 | -10/Mines | Entered Materials 363 | -9/Materials | Evolved 2 slots: Utility x2 746 | -9/Materials | Discovered new exit (range 16) 772 | -9/Materials | Identified exit to Materials 773 | -9/Materials | Entered another Materials area 773 | -8/Materials | Evolved 2 slots: Propulsion x2 972 | -8/Materials | Lost 5 parts (3n2w) 1041 | -8/Materials | Lost 3 parts (1p1n1u) 1096 | -8/Materials | Core integrity fell below 50% 1102 | -8/Materials | Self-destructed Last Messages --------------- 01003_ G-47 Trooper heat spikes uncontrollably. 01003_ G-47 Trooper critical meltdown. 01003_ Particle Gun melted. 01003_ Imp. Heat Sink melted. 01004_ Aluminum Leg destroyed. 01010_ Lgt. Ion Engine destroyed. 01010_ G-47 Trooper destroyed. 01015_ R-06 Scavenger collects Lgt. Nuclear Core. 01022_ Acquired 10 matter. 01029_ Acquired Prototype Flight Unit. 01030_ Identified Imp. Flight Unit. 01041_ Acquired 10 matter. 01042_ K-01 Serf cleans the Purification Channel. 01045_ K-01 Serf collects debris. 01045_ K-01 Serf cleans the Purification Channel. 01049_ K-01 Serf collects debris. 01086_ Critical hit (Burn: +37). Map ----- +----------------------------------------------------+ | ??????????# #??????????????????????????????????? | | ??????????# #??????????????????????????????????? | | ??????????# #??????????????????????????????????? | | ??????????# #??????????????????????????????????? | | ??????????# #??????????????????????????????????? | | ??????????# #??????????????????????????????????? | | ??????????# #??????###?????????????????????????? | | ??????????# #????= ?????????????????????????? | | ???######## #?? ???????????????????????????? | | #### # """ ""???????????????????????????? | | # + """ ""???????????????????????????? | | # " # """ ""???????????????????????????? | | %+ """ #?? ???????????????????????????? | | %# """ ###########????????????????????????? | | !# """ # #????????????????????????? | | #### "" # """ T #????????????????????????? | | # """ # """ #????????????????????????? | | # "" + """ [ #????????????????????????? | | %# """ # #????????????????????????? | | " + " # !#????????????????????????? | | "" # # #????????????????????????? | | " # # [#????????????????????????? | | "" # ##/########????????????????????????? | | # " ##??????????????????????????????? | | #### """ g################???????????????? | | ???# """ g @ uo ????????? | | ???# "" g g g#############???????????????? | | ???# """ #???????????????????????????? | | ???# "" #???????????????????????????? | | ??## """ ##########??????????????????? | | ??# " # #??????????????????? | | ??# # """ #??????????????????? | | ??# # """ #??????????????????? | | ??# # """ !#??????????????????? | | ??# # #??????????????????? | | ??####" "###### # """ #??????????????????? | | ?????#"Y"#????# # """ #??????????????????? | | ?????#"""#????# # """ #??????????????????? | | ?????############### # #??????????????????? | | ??????# / """"" # #####+#########?????????????? | | ??????# [ """"" + ????????? | | ??????# """"" # ????????? | | ??????# ###################???????????? | | ??????# #?????????????????????????????? | | ??????##############?????????????????????????????? | | ?????????????????????????????????????????????????? | | | | | | | | | +----------------------------------------------------+ Best States ------------- Heat Dissipation 31 Energy Generation 12 Energy Capacity 265 Matter Stores 300 Matter Capacity 300 Sight Range 16 Robot Scan Range 15 Terrain Scan Density 10 Armor Coverage 150 Evasion (%) 55 Targeting Accuracy 5 Item Schematics ----------------- None Robot Schematics ------------------ None Fabricated ------------ Nothing Alien Tech Used ----------------- None Achievements -------------- None Challenges ------------ None Game ------ Seed HeartReinforcedAutobeam Manual? 0 Play Time 00:18:38 Cumulative 4.3 hours Start 2024.05.04 @ 21:05:35 End 2024.05.04 @ 21:22:30 Sessions 1 Manual Loads 0 Difficulty Rogue Special Mode None Game No. 10 Rogue 10 Adventurer 0 Explorer 0 Win Type - Total 0 Types 0/0/0/0/0/0/0/0/0 Lore% 11 Gallery% 7 Achievement% 9 Wizard Run 0 Options --------- Layout 1 ASCII 0 Keyboard 0 Movement Mouse Keybinds 0 Fullscreen 2 Font 24/Smallcaps Map View 50x35 Zoom Use 0% Tactical HUD 1 Map Filters NONE Filters NONE Steam 1 RUN: 66b6e82d-6bb4-42cf-a2ad-5223a64bcae9